[Event "Late-Titled-Tuesday-Blitz-February-20-2024"]
[Site "Chess.com"]
[Date "2024.02.20"]
[Round "3"]
[White "ansko1999"]
[Black "Bilan_Danila"]
[Result "1/2-1/2"]
[WhiteElo "2670"]
[BlackElo "2468"]
[TimeControl "180+1"]
[EndTime "14:31:05 PST"]
[Termination "Game drawn by agreement"]

1. Nf3 {[%clk 0:03:00.9]} 1... d5 {[%clk 0:02:57.9]} 2. d4 {[%clk 0:02:58.8]}
2... Nf6 {[%clk 0:02:58]} 3. Bf4 {[%clk 0:02:58.5]} 3... c5 {[%clk 0:02:58.1]}
4. c3 {[%clk 0:02:56.9]} 4... Nc6 {[%clk 0:02:58.8]} 5. e3 {[%clk 0:02:56.5]}
5... Bg4 {[%clk 0:02:58.3]} 6. Nbd2 {[%clk 0:02:51.1]} 6... e6 {[%clk
0:02:58.5]} 7. Qb3 {[%clk 0:02:47.4]} 7... Qb6 {[%clk 0:02:57.4]} 8. Qxb6 {[%clk
0:02:11.4]} 8... axb6 {[%clk 0:02:58.3]} 9. Bb5 {[%clk 0:02:11.9]} 9... Nd7
{[%clk 0:02:48.7]} 10. Ne5 {[%clk 0:01:59.2]} 10... Ndxe5 {[%clk 0:02:40.3]} 11.
Bxe5 {[%clk 0:02:00.1]} 11... f6 {[%clk 0:02:37.8]} 12. Bc7 {[%clk 0:01:56.1]}
12... Kd7 {[%clk 0:02:32.5]} 13. Bxb6 {[%clk 0:01:53.6]} 13... c4 {[%clk
0:02:26.3]} 14. a4 {[%clk 0:01:44.5]} 14... Bd6 {[%clk 0:02:15.3]} 15. f3 {[%clk
0:01:32.7]} 15... Bh5 {[%clk 0:02:13.2]} 16. O-O {[%clk 0:01:29.3]} 16... Bc7
{[%clk 0:02:09.9]} 17. Bxc7 {[%clk 0:01:24.3]} 17... Kxc7 {[%clk 0:02:10.8]} 18.
Bxc6 {[%clk 0:01:19.4]} 18... bxc6 {[%clk 0:02:05.3]} 19. b3 {[%clk 0:01:18.9]}
19... cxb3 {[%clk 0:02:02.4]} 20. Nxb3 {[%clk 0:01:19.8]} 20... Rhb8 {[%clk
0:01:55]} 21. Nc5 {[%clk 0:01:19.7]} 21... e5 {[%clk 0:01:45.5]} 22. Rfb1 {[%clk
0:01:10.7]} 22... Bg6 {[%clk 0:01:36.6]} 23. e4 {[%clk 0:01:02.2]} 23... exd4
{[%clk 0:01:32.9]} 24. cxd4 {[%clk 0:01:03.1]} 24... dxe4 {[%clk 0:01:33]} 25.
fxe4 {[%clk 0:01:04]} 25... Bf7 {[%clk 0:01:12.2]} 26. Kf2 {[%clk 0:00:53.7]}
26... Bc4 {[%clk 0:01:06.7]} 27. Ke3 {[%clk 0:00:49.5]} 27... Kd6 {[%clk
0:01:06.3]} 28. Kd2 {[%clk 0:00:47.2]} 28... Bf7 {[%clk 0:00:53]} 29. Kc3 {[%clk
0:00:46.4]} 29... g6 {[%clk 0:00:52.8]} 30. Rf1 {[%clk 0:00:43.7]} 30... Ke7
{[%clk 0:00:50]} 31. Rab1 {[%clk 0:00:42.6]} 31... Be6 {[%clk 0:00:41.5]} 32. h3
{[%clk 0:00:39.6]} 32... f5 {[%clk 0:00:40.1]} 33. e5 {[%clk 0:00:25.9]} 33...
Bd5 {[%clk 0:00:36.3]} 34. Rxb8 {[%clk 0:00:14.9]} 34... Rxb8 {[%clk 0:00:35.3]}
35. Rg1 {[%clk 0:00:09.6]} 35... f4 {[%clk 0:00:32.7]} 36. h4 {[%clk 0:00:08.4]}
36... h6 {[%clk 0:00:32.8]} 37. Rf1 {[%clk 0:00:07]} 37... g5 {[%clk 0:00:33.1]}
38. hxg5 {[%clk 0:00:06.1]} 38... hxg5 {[%clk 0:00:34]} 39. Rf2 {[%clk 0:00:05]}
39... Rb1 {[%clk 0:00:31.9]} 40. a5 {[%clk 0:00:04.1]} 40... Ra1 {[%clk
0:00:31.4]} 41. a6 {[%clk 0:00:04.3]} 41... Kd8 {[%clk 0:00:26.7]} 42. Kb4
{[%clk 0:00:04]} 42... Kc7 {[%clk 0:00:25.6]} 43. Re2 {[%clk 0:00:03.1]} 43...
Rb1+ {[%clk 0:00:21.5]} 44. Kc3 {[%clk 0:00:03]} 44... g4 {[%clk 0:00:08.1]} 45.
e6 {[%clk 0:00:02.7]} 45... f3 {[%clk 0:00:08.6]} 46. gxf3 {[%clk 0:00:03.6]}
46... gxf3 {[%clk 0:00:09.1]} 47. Rh2 {[%clk 0:00:02.6]} 47... Kb6 {[%clk
0:00:05.6]} 48. Rf2 {[%clk 0:00:01]} 48... Re1 {[%clk 0:00:05.4]} 49. Kd3 {[%clk
0:00:01.6]} 49... Bxe6 {[%clk 0:00:03.9]} 50. Nxe6 {[%clk 0:00:02.5]} 50... Rxe6
{[%clk 0:00:03.8]} 51. Rxf3 {[%clk 0:00:02.8]} 51... Kxa6 {[%clk 0:00:04.1]} 52.
Kc4 {[%clk 0:00:03.3]} 52... Kb6 {[%clk 0:00:04.2]} 53. Rb3+ {[%clk 0:00:02.9]}
53... Kc7 {[%clk 0:00:04.8]} 54. Kc5 {[%clk 0:00:03.4]} 54... Rh6 {[%clk
0:00:05]} 55. Ra3 {[%clk 0:00:03.4]} 55... Rh5+ {[%clk 0:00:05.6]} 56. Kc4
{[%clk 0:00:04.2]} 56... Kd6 {[%clk 0:00:06.1]} 57. Ra8 {[%clk 0:00:04.9]} 57...
Rb5 {[%clk 0:00:05.8]} 58. Rd8+ {[%clk 0:00:05.1]} 58... Kc7 {[%clk 0:00:06.5]}
59. Rh8 {[%clk 0:00:05.2]} 59... Rd5 {[%clk 0:00:06.8]} 60. Rh7+ {[%clk
0:00:05.4]} 60... Kb6 {[%clk 0:00:07.5]} 61. Rh6 {[%clk 0:00:05.8]} 61... Rb5
{[%clk 0:00:06.4]} 62. Rg6 {[%clk 0:00:06.1]} 62... Rd5 {[%clk 0:00:06.6]} 63.
Rf6 {[%clk 0:00:06.7]} 63... Rb5 {[%clk 0:00:06.9]} 64. Re6 {[%clk 0:00:07]}
64... Ra5 {[%clk 0:00:07.4]} 65. Rd6 {[%clk 0:00:07]} 65... Rb5 {[%clk
0:00:07.9]} 66. Re6 {[%clk 0:00:07.2]} 66... Rd5 {[%clk 0:00:08.1]} 67. Re8
{[%clk 0:00:06.5]} 67... Ra5 {[%clk 0:00:07.2]} 68. Re7 {[%clk 0:00:06.7]} 68...
Rd5 {[%clk 0:00:07.2]} 69. Re6 {[%clk 0:00:07.1]} 69... Ra5 {[%clk 0:00:07.1]}
70. Re8 {[%clk 0:00:06.8]} 70... Rd5 {[%clk 0:00:06.7]} 71. Re5 {[%clk
0:00:07.4]} 71... Rb5 {[%clk 0:00:02.5]} 72. Re1 {[%clk 0:00:06]} 72... Kc7
{[%clk 0:00:02.6]} 73. Re2 {[%clk 0:00:05.8]} 73... Rd5 {[%clk 0:00:02.9]} 74.
Rb2 {[%clk 0:00:05.7]} 74... Kd6 {[%clk 0:00:03.8]} 75. Rb6 {[%clk 0:00:05.2]}
75... Ra5 {[%clk 0:00:04.3]} 76. Rb7 {[%clk 0:00:05.1]} 76... Ra4+ {[%clk
0:00:04.9]} 77. Kc3 {[%clk 0:00:05.5]} 77... Ra5 {[%clk 0:00:05.5]} 78. Rb8
{[%clk 0:00:05.8]} 78... Rh5 {[%clk 0:00:04.8]} 79. Rd8+ {[%clk 0:00:06.2]}
79... Kc7 {[%clk 0:00:05.3]} 80. Rg8 {[%clk 0:00:06.8]} 80... Ra5 {[%clk
0:00:05.7]} 81. Kb4 {[%clk 0:00:06.8]} 81... Rb5+ {[%clk 0:00:05.9]} 82. Kc4
{[%clk 0:00:07.4]} 82... Ra5 {[%clk 0:00:06.5]} 83. Rh8 {[%clk 0:00:07.4]} 83...
Kb6 {[%clk 0:00:06.7]} 84. Rb8+ {[%clk 0:00:07.7]} 84... Kc7 {[%clk 0:00:07.2]}
85. Rb4 {[%clk 0:00:08]} 85... Rd5 {[%clk 0:00:07.2]} 86. Rb3 {[%clk 0:00:08.1]}
86... Ra5 {[%clk 0:00:07.5]} 87. Rb2 {[%clk 0:00:07.8]} 87... Ra4+ {[%clk
0:00:08]} 88. Kc5 {[%clk 0:00:08.1]} 88... Ra5+ {[%clk 0:00:08.2]} 89. Kc4
{[%clk 0:00:08.4]} 89... Ra4+ {[%clk 0:00:08.7]} 90. Kd3 {[%clk 0:00:09.1]}
90... Kd6 {[%clk 0:00:08.5]} 91. Rc2 {[%clk 0:00:08.9]} 91... Ra3+ {[%clk
0:00:08.9]} 92. Ke4 {[%clk 0:00:08.7]} 92... Ra4 {[%clk 0:00:09.4]} 93. Rh2
{[%clk 0:00:08.4]} 93... c5 {[%clk 0:00:09.4]} 94. Rh6+ {[%clk 0:00:08.6]} 94...
Kd7 {[%clk 0:00:09.5]} 95. Kd5 {[%clk 0:00:05]} 95... Rxd4+ {[%clk 0:00:09.2]}
96. Kxc5 {[%clk 0:00:05]} 96... Rd1 {[%clk 0:00:09.9]} 97. Rh7+ {[%clk
0:00:04.7]} 97... Ke6 {[%clk 0:00:10.3]} 98. Rh6+ {[%clk 0:00:05.2]} 98... Kf5
{[%clk 0:00:10.6]} 99. Ra6 {[%clk 0:00:04.6]} 99... Ke5 {[%clk 0:00:10.6]} 100.
Ra8 {[%clk 0:00:04.5]} 100... Kf6 {[%clk 0:00:10.9]} 101. Rb8 {[%clk 0:00:04.1]}
101... Ke7 {[%clk 0:00:11.1]} 102. Ra8 {[%clk 0:00:03.8]} 102... Ke6 {[%clk
0:00:11.1]} 103. Kc4 {[%clk 0:00:04.4]} 103... Kf5 {[%clk 0:00:11.3]} 104. Kc3
{[%clk 0:00:04.9]} 104... Rd7 {[%clk 0:00:11.4]} 105. Rf8+ {[%clk 0:00:05.3]}
105... Ke5 {[%clk 0:00:11.4]} 106. Rf1 {[%clk 0:00:05.8]} 106... Ke4 {[%clk
0:00:11.4]} 107. Re1+ {[%clk 0:00:06.1]} 107... Kf3 {[%clk 0:00:11.9]} 108. Rf1+
{[%clk 0:00:06.4]} 108... Ke2 {[%clk 0:00:12.3]} 109. Rf6 {[%clk 0:00:06.7]}
109... Ke3 {[%clk 0:00:11.5]} 110. Kc4 {[%clk 0:00:06.7]} 110... Ke4 {[%clk
0:00:11.3]} 111. Kc5 {[%clk 0:00:07]} 111... Rd1 {[%clk 0:00:11.1]} 112. Rf2
{[%clk 0:00:07]} 112... Ke3 {[%clk 0:00:11.4]} 113. Rf8 {[%clk 0:00:07]} 113...
Ke4 {[%clk 0:00:11.9]} 114. Re8+ {[%clk 0:00:07.4]} 114... Kf5 {[%clk
0:00:12.5]} 115. Kc4 {[%clk 0:00:07.2]} 115... Rd7 {[%clk 0:00:11.5]} 116. Re2
{[%clk 0:00:07.1]} 116... Kf4 {[%clk 0:00:11.7]} 117. Kc3 {[%clk 0:00:07.4]}
117... Kf5 {[%clk 0:00:12.2]} 118. Rf2+ {[%clk 0:00:07.5]} 118... Ke4 {[%clk
0:00:12.8]} 119. Rh2 {[%clk 0:00:06.9]} 119... Kf5 {[%clk 0:00:12.8]} 120. Kc4
{[%clk 0:00:07.1]} 120... Ke5 {[%clk 0:00:12.6]} 121. Rh5+ {[%clk 0:00:07]}
121... Ke4 {[%clk 0:00:12.3]} 122. Rh4+ {[%clk 0:00:07.4]} 122... Ke5 {[%clk
0:00:12.4]} 123. Rh3 {[%clk 0:00:07.5]} 123... Rc7+ {[%clk 0:00:12.6]} 124. Kd3
{[%clk 0:00:07.6]} 124... Ra7 {[%clk 0:00:12.1]} 125. Rh5+ {[%clk 0:00:08]}
125... Kf4 {[%clk 0:00:12.5]} 126. Rb5 {[%clk 0:00:07.7]} 126... Rd7+ {[%clk
0:00:12.9]} 127. Kc4 {[%clk 0:00:08.1]} 127... Ke4 {[%clk 0:00:12.6]} 128. Rc5
{[%clk 0:00:07.9]} 128... Rd1 {[%clk 0:00:12.1]} 1/2-1/2

[Event "Late-Titled-Tuesday-Blitz-February-20-2024"]
[Site "Chess.com"]
[Date "2024.02.20"]
[Round "4"]
[White "RichardShtivelband"]
[Black "Eloist"]
[Result "1-0"]
[WhiteElo "2351"]
[BlackElo "2461"]
[TimeControl "180+1"]
[EndTime "14:34:11 PST"]
[Termination "RichardShtivelband won by resignation"]

1. d4 {[%clk 0:03:00.9]} 1... e6 {[%clk 0:02:55.7]} 2. c4 {[%clk 0:03:00.3]}
2... Nf6 {[%clk 0:02:55]} 3. Nc3 {[%clk 0:02:59.8]} 3... Bb4 {[%clk 0:02:54.4]}
4. Qc2 {[%clk 0:02:56.1]} 4... c5 {[%clk 0:02:53.2]} 5. dxc5 {[%clk 0:02:55]}
5... O-O {[%clk 0:02:52.9]} 6. Nf3 {[%clk 0:02:52.9]} 6... Na6 {[%clk
0:02:52.1]} 7. e3 {[%clk 0:02:49.6]} 7... Nxc5 {[%clk 0:02:51.2]} 8. Bd2 {[%clk
0:02:48.3]} 8... b6 {[%clk 0:02:47.9]} 9. a3 {[%clk 0:02:47.7]} 9... Bxc3 {[%clk
0:02:47.4]} 10. Bxc3 {[%clk 0:02:48.6]} 10... Bb7 {[%clk 0:02:28.4]} 11. b4
{[%clk 0:02:35.7]} 11... Be4 {[%clk 0:02:21.9]} 12. Qd1 {[%clk 0:02:35.7]} 12...
Nb7 {[%clk 0:02:05.9]} 13. Bd3 {[%clk 0:02:33.6]} 13... d6 {[%clk 0:01:56.2]}
14. O-O {[%clk 0:02:30.9]} 14... Rc8 {[%clk 0:01:51.5]} 15. Bxf6 {[%clk
0:02:29]} 15... Bxf3 {[%clk 0:01:34.7]} 16. Qxf3 {[%clk 0:02:28.4]} 1-0

[Event "Late-Titled-Tuesday-Blitz-February-20-2024"]
[Site "Chess.com"]
[Date "2024.02.20"]
[Round "4"]
[White "koncheto"]
[Black "Horokoskii"]
[Result "1-0"]
[WhiteElo "2415"]
[BlackElo "2114"]
[TimeControl "180+1"]
[EndTime "14:34:29 PST"]
[Termination "koncheto won by resignation"]

1. e4 {[%clk 0:02:50.8]} 1... c5 {[%clk 0:02:58.9]} 2. Nf3 {[%clk 0:02:51]} 2...
d6 {[%clk 0:02:57.8]} 3. d4 {[%clk 0:02:51.5]} 3... cxd4 {[%clk 0:02:57.6]} 4.
Nxd4 {[%clk 0:02:52.4]} 4... Nf6 {[%clk 0:02:57.9]} 5. f3 {[%clk 0:02:53.1]}
5... g6 {[%clk 0:02:52.8]} 6. c4 {[%clk 0:02:52.9]} 6... Bg7 {[%clk 0:02:52.6]}
7. Nc3 {[%clk 0:02:50.6]} 7... O-O {[%clk 0:02:52.3]} 8. Be3 {[%clk 0:02:50.9]}
8... Nc6 {[%clk 0:02:52.3]} 9. Be2 {[%clk 0:02:49.7]} 9... a6 {[%clk 0:02:52.7]}
10. O-O {[%clk 0:02:49.9]} 10... Nd7 {[%clk 0:02:35.8]} 11. Nc2 {[%clk
0:02:49.5]} 11... Rb8 {[%clk 0:02:31.7]} 12. Qd2 {[%clk 0:02:48.8]} 12... Re8
{[%clk 0:02:30.6]} 13. Rfd1 {[%clk 0:02:47.7]} 13... b5 {[%clk 0:02:27.4]} 14.
cxb5 {[%clk 0:02:47.5]} 14... axb5 {[%clk 0:02:27.2]} 15. Bxb5 {[%clk
0:02:39.7]} 15... Nce5 {[%clk 0:02:21.7]} 16. Rac1 {[%clk 0:02:36.2]} 16... Qa5
{[%clk 0:02:17.8]} 17. b4 {[%clk 0:02:29.3]} 17... Qc7 {[%clk 0:02:04.7]} 18.
Nd4 {[%clk 0:02:15.7]} 18... Nc4 {[%clk 0:02:03.9]} 19. Bxc4 {[%clk 0:02:11.6]}
19... Qxc4 {[%clk 0:02:03.8]} 20. Ncb5 {[%clk 0:02:04.7]} 1-0

[Event "Late-Titled-Tuesday-Blitz-February-20-2024"]
[Site "Chess.com"]
[Date "2024.02.20"]
[Round "4"]
[White "aghasiyevkamal"]
[Black "MajorCoast"]
[Result "1-0"]
[WhiteElo "2635"]
[BlackElo "2208"]
[TimeControl "180+1"]
[EndTime "14:34:37 PST"]
[Termination "aghasiyevkamal won by checkmate"]

1. d4 {[%clk 0:02:59.1]} 1... g6 {[%clk 0:02:57.2]} 2. c4 {[%clk 0:02:58.3]}
2... Bg7 {[%clk 0:02:57.7]} 3. Nc3 {[%clk 0:02:58.5]} 3... c5 {[%clk 0:02:57.6]}
4. e3 {[%clk 0:02:52.6]} 4... cxd4 {[%clk 0:02:54.9]} 5. exd4 {[%clk 0:02:50.8]}
5... Nf6 {[%clk 0:02:47.6]} 6. d5 {[%clk 0:02:46.6]} 6... O-O {[%clk 0:02:42.6]}
7. Nf3 {[%clk 0:02:44.2]} 7... e6 {[%clk 0:02:42.7]} 8. Be2 {[%clk 0:02:29.8]}
8... a5 {[%clk 0:02:42.2]} 9. O-O {[%clk 0:02:29]} 9... Na6 {[%clk 0:02:41.2]}
10. Bf4 {[%clk 0:02:25.3]} 10... Nc5 {[%clk 0:02:36.8]} 11. Bd6 {[%clk
0:02:24.7]} 11... Nce4 {[%clk 0:02:33]} 12. Bxf8 {[%clk 0:02:24.3]} 12... Qxf8
{[%clk 0:02:32.8]} 13. Nxe4 {[%clk 0:02:22.4]} 13... Nxe4 {[%clk 0:02:33.7]} 14.
Qc2 {[%clk 0:02:22.5]} 14... exd5 {[%clk 0:02:32.7]} 15. cxd5 {[%clk 0:02:22.6]}
15... Qb4 {[%clk 0:02:30.5]} 16. a3 {[%clk 0:02:17.4]} 16... Qxb2 {[%clk
0:02:22.9]} 17. Qxe4 {[%clk 0:02:16.8]} 17... d6 {[%clk 0:02:22.3]} 18. Qe8+
{[%clk 0:02:14.8]} 18... Bf8 {[%clk 0:02:22.7]} 19. Rac1 {[%clk 0:02:11.3]}
19... Bh3 {[%clk 0:02:14.9]} 20. Qxa8 {[%clk 0:02:07.6]} 20... Bxg2 {[%clk
0:02:15.8]} 21. Kxg2 {[%clk 0:02:06.8]} 21... Qxe2 {[%clk 0:02:14.2]} 22. Rc8
{[%clk 0:02:05.7]} 22... Qxf3+ {[%clk 0:02:11.4]} 23. Kxf3 {[%clk 0:02:05]}
23... g5 {[%clk 0:02:12.3]} 24. Rxf8+ {[%clk 0:02:05]} 24... Kg7 {[%clk
0:02:13.2]} 25. Re1 {[%clk 0:02:04.2]} 25... g4+ {[%clk 0:02:14.1]} 26. Kxg4
{[%clk 0:02:04.1]} 26... h5+ {[%clk 0:01:54.8]} 27. Kf5 {[%clk 0:02:02.8]} 27...
b5 {[%clk 0:01:54.7]} 28. Rg1+ {[%clk 0:02:01.5]} 28... Kh6 {[%clk 0:01:55.6]}
29. Rh8# {[%clk 0:02:01]} 1-0

[Event "Late-Titled-Tuesday-Blitz-February-20-2024"]
[Site "Chess.com"]
[Date "2024.02.20"]
[Round "4"]
[White "thesupera12"]
[Black "Happy1712Drummer"]
[Result "1-0"]
[WhiteElo "2496"]
[BlackElo "2348"]
[TimeControl "180+1"]
[EndTime "14:35:33 PST"]
[Termination "thesupera12 won by resignation"]

1. d4 {[%clk 0:02:59.3]} 1... e6 {[%clk 0:02:57.9]} 2. Nf3 {[%clk 0:02:55.6]}
2... Nf6 {[%clk 0:02:58.1]} 3. g3 {[%clk 0:02:55.8]} 3... c5 {[%clk 0:02:57.2]}
4. Bg2 {[%clk 0:02:56.7]} 4... cxd4 {[%clk 0:02:57.2]} 5. O-O {[%clk 0:02:57.6]}
5... Nc6 {[%clk 0:02:54.9]} 6. Nxd4 {[%clk 0:02:57.9]} 6... Bc5 {[%clk
0:02:53.9]} 7. Nb3 {[%clk 0:02:56.2]} 7... Bb6 {[%clk 0:02:53.7]} 8. c4 {[%clk
0:02:56.3]} 8... d5 {[%clk 0:02:49.2]} 9. cxd5 {[%clk 0:02:56.7]} 9... exd5
{[%clk 0:02:48.1]} 10. Bg5 {[%clk 0:02:55.3]} 10... d4 {[%clk 0:02:45.3]} 11.
N1d2 {[%clk 0:02:49.8]} 11... h6 {[%clk 0:02:41.1]} 12. Bxf6 {[%clk 0:02:48.5]}
12... Qxf6 {[%clk 0:02:42]} 13. Nc4 {[%clk 0:02:48.5]} 13... O-O {[%clk
0:02:36.2]} 14. Nxb6 {[%clk 0:02:48.1]} 14... axb6 {[%clk 0:02:37.1]} 15. Bxc6
{[%clk 0:02:48.1]} 15... bxc6 {[%clk 0:02:36.2]} 16. Qxd4 {[%clk 0:02:47.8]}
16... Qe7 {[%clk 0:02:29.5]} 17. Qxb6 {[%clk 0:02:46.1]} 17... Qxe2 {[%clk
0:02:24.6]} 18. Nd4 {[%clk 0:02:45.4]} 18... Qe4 {[%clk 0:02:15.6]} 19. Rfe1
{[%clk 0:02:42.6]} 19... Qd5 {[%clk 0:02:13]} 20. Nxc6 {[%clk 0:02:42.6]} 20...
Qh5 {[%clk 0:01:49.7]} 21. Ne7+ {[%clk 0:02:41.7]} 21... Kh8 {[%clk 0:01:46.7]}
22. Nxc8 {[%clk 0:02:41.3]} 22... Rfxc8 {[%clk 0:01:47.5]} 23. a4 {[%clk
0:02:24]} 23... Rc2 {[%clk 0:01:43.9]} 24. a5 {[%clk 0:02:20.1]} 24... Qf3
{[%clk 0:01:41.6]} 25. a6 {[%clk 0:02:16.5]} 25... Kh7 {[%clk 0:01:39.8]} 26. a7
{[%clk 0:02:13.5]} 26... Rac8 {[%clk 0:01:20.8]} 27. Qe3 {[%clk 0:02:05.3]} 1-0

[Event "Late-Titled-Tuesday-Blitz-February-20-2024"]
[Site "Chess.com"]
[Date "2024.02.20"]
[Round "4"]
[White "Korchmar_Vasiliy"]
[Black "gmtalentoso"]
[Result "1-0"]
[WhiteElo "2758"]
[BlackElo "2475"]
[TimeControl "180+1"]
[EndTime "14:35:35 PST"]
[Termination "Korchmar_Vasiliy won by resignation"]

1. Nf3 {[%clk 0:03:00.9]} 1... Nf6 {[%clk 0:02:56.5]} 2. c4 {[%clk 0:02:59.2]}
2... e6 {[%clk 0:02:54.9]} 3. g3 {[%clk 0:02:57.7]} 3... d5 {[%clk 0:02:51.4]}
4. Bg2 {[%clk 0:02:54.2]} 4... Be7 {[%clk 0:02:50.5]} 5. O-O {[%clk 0:02:53.8]}
5... O-O {[%clk 0:02:50.2]} 6. b3 {[%clk 0:02:53.7]} 6... c6 {[%clk 0:02:48.7]}
7. Bb2 {[%clk 0:02:53.3]} 7... Nbd7 {[%clk 0:02:49.3]} 8. d4 {[%clk 0:02:52.8]}
8... b6 {[%clk 0:02:48.3]} 9. Nc3 {[%clk 0:02:52.1]} 9... Bb7 {[%clk 0:02:48.3]}
10. Nd2 {[%clk 0:02:51.3]} 10... c5 {[%clk 0:02:40.4]} 11. e3 {[%clk 0:02:48.7]}
11... Rc8 {[%clk 0:02:36]} 12. Rc1 {[%clk 0:02:48.8]} 12... Qc7 {[%clk
0:02:25.9]} 13. cxd5 {[%clk 0:02:37.6]} 13... Nxd5 {[%clk 0:02:21.2]} 14. Nxd5
{[%clk 0:02:36]} 14... Bxd5 {[%clk 0:02:18.8]} 15. e4 {[%clk 0:02:36.2]} 15...
Bb7 {[%clk 0:02:12]} 16. dxc5 {[%clk 0:02:32.4]} 16... bxc5 {[%clk 0:02:09.8]}
17. Nc4 {[%clk 0:02:31.7]} 17... Nb6 {[%clk 0:01:56.9]} 18. Qg4 {[%clk
0:02:29.1]} 18... g6 {[%clk 0:01:55.6]} 19. Be5 {[%clk 0:02:20.4]} 19... Qc6
{[%clk 0:01:47.6]} 20. Na5 {[%clk 0:02:19.4]} 20... Qb5 {[%clk 0:01:08.7]} 21.
Nxb7 {[%clk 0:02:18.1]} 21... c4 {[%clk 0:01:09]} 22. Bd6 {[%clk 0:02:11.4]}
22... Qd7 {[%clk 0:01:07.4]} 23. Bxe7 {[%clk 0:02:06.3]} 23... Qxe7 {[%clk
0:01:08.3]} 24. e5 {[%clk 0:02:02.9]} 24... Nd5 {[%clk 0:00:57.7]} 25. Nd6
{[%clk 0:01:59.2]} 1-0

[Event "Late-Titled-Tuesday-Blitz-February-20-2024"]
[Site "Chess.com"]
[Date "2024.02.20"]
[Round "4"]
[White "cmunda"]
[Black "DraningWaterHi"]
[Result "1/2-1/2"]
[WhiteElo "2134"]
[BlackElo "2250"]
[TimeControl "180+1"]
[EndTime "14:35:59 PST"]
[Termination "Game drawn by repetition"]

1. e4 {[%clk 0:03:00.9]} 1... e5 {[%clk 0:02:57.7]} 2. Nf3 {[%clk 0:03:00.8]}
2... Nc6 {[%clk 0:02:56.8]} 3. Nc3 {[%clk 0:02:59.5]} 3... Nf6 {[%clk
0:02:56.5]} 4. d4 {[%clk 0:02:59.3]} 4... exd4 {[%clk 0:02:56.5]} 5. Nxd4 {[%clk
0:03:00.2]} 5... Bb4 {[%clk 0:02:56]} 6. Nxc6 {[%clk 0:02:59.3]} 6... bxc6
{[%clk 0:02:56.9]} 7. Bd3 {[%clk 0:02:59.4]} 7... d5 {[%clk 0:02:57]} 8. exd5
{[%clk 0:02:59.7]} 8... cxd5 {[%clk 0:02:57.9]} 9. O-O {[%clk 0:02:59.8]} 9...
O-O {[%clk 0:02:58.2]} 10. Bg5 {[%clk 0:02:59.8]} 10... c6 {[%clk 0:02:58.5]}
11. Qf3 {[%clk 0:02:57.9]} 11... h6 {[%clk 0:02:57.4]} 12. Bxf6 {[%clk
0:02:56.9]} 12... Qxf6 {[%clk 0:02:58.3]} 13. Qxf6 {[%clk 0:02:57]} 13... gxf6
{[%clk 0:02:59.2]} 14. Ne2 {[%clk 0:02:57.1]} 14... Bd6 {[%clk 0:02:58]} 15. Ng3
{[%clk 0:02:48.9]} 15... Be6 {[%clk 0:02:55.7]} 16. c3 {[%clk 0:02:41.2]} 16...
Rab8 {[%clk 0:02:55.1]} 17. b3 {[%clk 0:02:40.8]} 17... a5 {[%clk 0:02:54.9]}
18. Nh5 {[%clk 0:02:40.5]} 18... Be5 {[%clk 0:02:54.3]} 19. Rac1 {[%clk
0:02:40.4]} 19... f5 {[%clk 0:02:53.8]} 20. f4 {[%clk 0:02:37.5]} 20... Bd6
{[%clk 0:02:52.2]} 21. Ng3 {[%clk 0:02:37.6]} 21... Bc5+ {[%clk 0:02:48.9]} 22.
Kh1 {[%clk 0:02:37.3]} 22... a4 {[%clk 0:02:49.3]} 23. b4 {[%clk 0:02:37]} 23...
Be3 {[%clk 0:02:47.6]} 24. Rc2 {[%clk 0:02:25.6]} 24... c5 {[%clk 0:02:46.4]}
25. a3 {[%clk 0:02:23.9]} 25... cxb4 {[%clk 0:02:35.6]} 26. cxb4 {[%clk
0:02:23.9]} 26... Rfc8 {[%clk 0:02:34.2]} 27. Re2 {[%clk 0:02:08.7]} 27... d4
{[%clk 0:02:33.8]} 28. Bxf5 {[%clk 0:02:08.9]} 28... Rc3 {[%clk 0:02:32.3]} 29.
Bxe6 {[%clk 0:01:28.1]} 29... fxe6 {[%clk 0:02:32.2]} 30. f5 {[%clk 0:01:21]}
30... exf5 {[%clk 0:02:30.5]} 31. Nxf5 {[%clk 0:01:21.2]} 31... Rxa3 {[%clk
0:02:30.3]} 32. g4 {[%clk 0:01:09.8]} 32... Rxb4 {[%clk 0:02:29.5]} 33. Rc2
{[%clk 0:01:04.5]} 33... Rab3 {[%clk 0:02:10.4]} 34. Rc8+ {[%clk 0:01:03.7]}
34... Kh7 {[%clk 0:02:09.5]} 35. Rc7+ {[%clk 0:01:00]} 35... Kh8 {[%clk
0:02:05.4]} 36. Rc8+ {[%clk 0:00:59.1]} 36... Kh7 {[%clk 0:02:05.1]} 37. Rc7+
{[%clk 0:00:59.1]} 37... Kg8 {[%clk 0:02:04.9]} 38. Rc8+ {[%clk 0:00:57]} 38...
Kh7 {[%clk 0:02:03.1]} 1/2-1/2

[Event "Late-Titled-Tuesday-Blitz-February-20-2024"]
[Site "Chess.com"]
[Date "2024.02.20"]
[Round "4"]
[White "WindWhistler11"]
[Black "Jadro9"]
[Result "0-1"]
[WhiteElo "2492"]
[BlackElo "2634"]
[TimeControl "180+1"]
[EndTime "14:36:05 PST"]
[Termination "Jadro9 won by resignation"]

1. c4 {[%clk 0:02:56.5]} 1... d6 {[%clk 0:02:58.3]} 2. Nc3 {[%clk 0:02:56.2]}
2... Nd7 {[%clk 0:02:58.7]} 3. e3 {[%clk 0:02:56.3]} 3... e5 {[%clk 0:02:58.1]}
4. g4 {[%clk 0:02:55.8]} 4... g6 {[%clk 0:02:58.1]} 5. Bg2 {[%clk 0:02:55.3]}
5... Bg7 {[%clk 0:02:58.5]} 6. b3 {[%clk 0:02:44.8]} 6... Ne7 {[%clk 0:02:58.9]}
7. Bb2 {[%clk 0:02:44.8]} 7... O-O {[%clk 0:02:58.5]} 8. g5 {[%clk 0:02:40.4]}
8... f5 {[%clk 0:02:58.5]} 9. Nge2 {[%clk 0:02:36.4]} 9... f4 {[%clk 0:02:52.1]}
10. Be4 {[%clk 0:02:07]} 10... Nf5 {[%clk 0:02:49]} 11. Qc2 {[%clk 0:02:04.7]}
11... Qxg5 {[%clk 0:02:48.5]} 12. O-O-O {[%clk 0:02:05]} 12... Nc5 {[%clk
0:02:48.5]} 13. Rdg1 {[%clk 0:02:01.9]} 13... Qh4 {[%clk 0:02:46]} 14. Bd5+
{[%clk 0:02:00.9]} 14... Kh8 {[%clk 0:02:45.9]} 15. d4 {[%clk 0:01:54.8]} 15...
fxe3 {[%clk 0:02:25.3]} 16. dxc5 {[%clk 0:01:05.7]} 16... exf2 {[%clk
0:02:25.4]} 17. Rg3 {[%clk 0:00:55.1]} 17... Bh6+ {[%clk 0:02:19.1]} 18. Kb1
{[%clk 0:00:54.7]} 18... Ne3 {[%clk 0:02:09.9]} 19. Rxe3 {[%clk 0:00:41.7]}
19... Bxe3 {[%clk 0:02:09.8]} 20. Rf1 {[%clk 0:00:39.5]} 20... Bh3 {[%clk
0:02:09.4]} 21. Qd1 {[%clk 0:00:32.7]} 21... Bxf1 {[%clk 0:02:09.2]} 22. Qxf1
{[%clk 0:00:33.4]} 22... Bxc5 {[%clk 0:02:04.6]} 23. Ne4 {[%clk 0:00:31]} 23...
c6 {[%clk 0:02:04.2]} 24. Nxc5 {[%clk 0:00:28.3]} 24... cxd5 {[%clk 0:02:04.6]}
25. Nxb7 {[%clk 0:00:28.8]} 25... Qe4+ {[%clk 0:02:00.6]} 26. Kc1 {[%clk
0:00:23.5]} 26... Qxe2 {[%clk 0:02:00.8]} 0-1